[Event "*** Titled Tuesday Blitz"]
[Site "Chess.com"]
[Date "2021.03.16"]
[Round "9"]
[White "AttilaTurzo"]
[Black "ErikRonka"]
[Result "1-0"]
[WhiteElo "2539"]
[BlackElo "2423"]
[TimeControl "180+1"]
[EndTime "11:43:25 PDT"]
[Termination "AttilaTurzo won by resignation"]

1. d4 {[%clk 0:03:00.9]} 1... d5 {[%clk 0:02:57.9]} 2. Bf4 {[%clk 0:02:59.7]}
2... c5 {[%clk 0:02:55.5]} 3. e3 {[%clk 0:02:59.7]} 3... cxd4 {[%clk 0:02:56.1]}
4. exd4 {[%clk 0:02:59.4]} 4... Nc6 {[%clk 0:02:56.7]} 5. c3 {[%clk 0:02:58.3]}
5... f6 {[%clk 0:02:56.6]} 6. Nf3 {[%clk 0:02:45.5]} 6... g5 {[%clk 0:02:55]} 7.
Be3 {[%clk 0:02:37.7]} 7... Bf5 {[%clk 0:02:44.9]} 8. Bd3 {[%clk 0:02:34.5]}
8... Qd7 {[%clk 0:02:43]} 9. O-O {[%clk 0:02:32.7]} 9... O-O-O {[%clk
0:02:23.2]} 10. c4 {[%clk 0:02:30.9]} 10... Bxd3 {[%clk 0:01:59.1]} 11. Qxd3
{[%clk 0:02:30.2]} 11... g4 {[%clk 0:01:54.1]} 12. Nfd2 {[%clk 0:02:23.6]} 12...
e5 {[%clk 0:01:16.4]} 13. cxd5 {[%clk 0:02:15.1]} 13... Qxd5 {[%clk 0:01:17.3]}
14. Nc3 {[%clk 0:02:15.5]} 14... Qd7 {[%clk 0:01:13.8]} 15. d5 {[%clk
0:02:15.6]} 15... Nb4 {[%clk 0:01:09.8]} 16. Qc4+ {[%clk 0:02:11.9]} 16... Kb8
{[%clk 0:01:08.9]} 17. Rfd1 {[%clk 0:01:56.4]} 17... Rc8 {[%clk 0:01:03.3]} 18.
Qb3 {[%clk 0:01:53.7]} 18... Bd6 {[%clk 0:00:56.9]} 19. Nc4 {[%clk 0:01:52.4]}
19... Rxc4 {[%clk 0:00:39.5]} 20. Qxc4 {[%clk 0:01:52]} 20... Ne7 {[%clk
0:00:40.4]} 21. Nb5 {[%clk 0:01:34.3]} 21... Rc8 {[%clk 0:00:31.1]} 22. Bxa7+
{[%clk 0:01:33.1]} 22... Ka8 {[%clk 0:00:30.8]} 23. Qf1 {[%clk 0:01:34]} 23...
Bc5 {[%clk 0:00:28.7]} 24. Bxc5 {[%clk 0:01:30.1]} 24... Rxc5 {[%clk 0:00:29.6]}
25. Nc3 {[%clk 0:01:26.6]} 25... Nf5 {[%clk 0:00:24.7]} 26. Rac1 {[%clk
0:01:20.4]} 26... Nd4 {[%clk 0:00:23]} 27. a3 {[%clk 0:01:16.3]} 27... Nbc2
{[%clk 0:00:19.7]} 28. Qd3 {[%clk 0:01:11.6]} 28... f5 {[%clk 0:00:04]} 29. Rxc2
{[%clk 0:01:11.3]} 29... Nxc2 {[%clk 0:00:04.9]} 30. Qxc2 {[%clk 0:01:11.4]}
30... e4 {[%clk 0:00:05.3]} 31. Qa4+ {[%clk 0:01:07.6]} 31... Qxa4 {[%clk
0:00:05.4]} 32. Nxa4 {[%clk 0:01:08.5]} 32... Rc2 {[%clk 0:00:05.2]} 33. d6
{[%clk 0:01:08]} 1-0

[Event "*** Titled Tuesday Blitz"]
[Site "Chess.com"]
[Date "2021.03.16"]
[Round "9"]
[White "aljado"]
[Black "Hangar-18"]
[Result "1-0"]
[WhiteElo "2159"]
[BlackElo "2316"]
[TimeControl "180+1"]
[EndTime "11:43:37 PDT"]
[Termination "aljado won by checkmate"]

1. e4 {[%clk 0:03:00.9]} 1... c6 {[%clk 0:02:59.7]} 2. d4 {[%clk 0:02:59.3]}
2... d5 {[%clk 0:03:00.6]} 3. exd5 {[%clk 0:02:58.7]} 3... cxd5 {[%clk
0:03:00.4]} 4. c4 {[%clk 0:02:59.2]} 4... Nf6 {[%clk 0:02:59.9]} 5. Nc3 {[%clk
0:02:59.5]} 5... Be6 {[%clk 0:02:56.5]} 6. Nf3 {[%clk 0:02:58.3]} 6... dxc4
{[%clk 0:02:56]} 7. Ne5 {[%clk 0:02:48.9]} 7... Nc6 {[%clk 0:02:42.2]} 8. Qa4
{[%clk 0:02:46.3]} 8... Bd7 {[%clk 0:02:33.7]} 9. Nxd7 {[%clk 0:02:44.7]} 9...
Qxd7 {[%clk 0:02:33.6]} 10. Be3 {[%clk 0:02:33.6]} 10... e6 {[%clk 0:02:28]} 11.
Bxc4 {[%clk 0:02:32.5]} 11... Be7 {[%clk 0:02:16.7]} 12. O-O {[%clk 0:02:31.4]}
12... O-O {[%clk 0:02:14.7]} 13. Rfd1 {[%clk 0:02:26.4]} 13... Nb4 {[%clk
0:01:47.5]} 14. Qxd7 {[%clk 0:02:14.9]} 14... Nxd7 {[%clk 0:01:47.3]} 15. d5
{[%clk 0:02:14.1]} 15... Nb6 {[%clk 0:01:45.5]} 16. Bxb6 {[%clk 0:02:08.1]}
16... axb6 {[%clk 0:01:40.4]} 17. dxe6 {[%clk 0:02:07.3]} 17... fxe6 {[%clk
0:01:37.4]} 18. Bxe6+ {[%clk 0:02:06.3]} 18... Kh8 {[%clk 0:01:37.8]} 19. a3
{[%clk 0:02:03.3]} 19... Nc6 {[%clk 0:01:34.6]} 20. Rd7 {[%clk 0:01:57.7]} 20...
Bc5 {[%clk 0:01:29.8]} 21. Ne4 {[%clk 0:01:56.6]} 21... Bd4 {[%clk 0:01:26.2]}
22. Rd1 {[%clk 0:01:49.9]} 22... Bxb2 {[%clk 0:01:21.8]} 23. Rxb7 {[%clk
0:01:46.7]} 23... Rab8 {[%clk 0:01:13.8]} 24. Rc7 {[%clk 0:01:34.2]} 24... Nd4
{[%clk 0:01:10.4]} 25. Ba2 {[%clk 0:01:09.3]} 25... Rbd8 {[%clk 0:01:09]} 26.
Kf1 {[%clk 0:01:05]} 26... Bxa3 {[%clk 0:01:07.5]} 27. Ng5 {[%clk 0:00:59.8]}
27... Ne6 {[%clk 0:00:42.8]} 28. Nf7+ {[%clk 0:00:40]} 28... Rxf7 {[%clk
0:00:30.4]} 29. Rxd8+ {[%clk 0:00:39.3]} 29... Nxd8 {[%clk 0:00:29.2]} 30. Bxf7
{[%clk 0:00:37.6]} 30... Nxf7 {[%clk 0:00:27.3]} 31. Rc8+ {[%clk 0:00:35]} 31...
Bf8 {[%clk 0:00:25.9]} 32. Rxf8# {[%clk 0:00:32.8]} 1-0

[Event "*** Titled Tuesday Blitz"]
[Site "Chess.com"]
[Date "2021.03.16"]
[Round "9"]
[White "NiranjanNavalgund"]
[Black "mbojan"]
[Result "0-1"]
[WhiteElo "2530"]
[BlackElo "2652"]
[TimeControl "180+1"]
[EndTime "11:43:43 PDT"]
[Termination "mbojan won by resignation"]

1. d4 {[%clk 0:03:00.9]} 1... g6 {[%clk 0:03:00.9]} 2. e4 {[%clk 0:02:52.3]}
2... Bg7 {[%clk 0:03:00.9]} 3. Nc3 {[%clk 0:02:41.5]} 3... d6 {[%clk 0:03:01.3]}
4. Nf3 {[%clk 0:02:39.1]} 4... a6 {[%clk 0:03:01.5]} 5. a4 {[%clk 0:02:38.8]}
5... b6 {[%clk 0:02:58.9]} 6. h4 {[%clk 0:02:38.4]} 6... h6 {[%clk 0:02:58.8]}
7. Bc4 {[%clk 0:02:37.5]} 7... e6 {[%clk 0:02:58.9]} 8. Qe2 {[%clk 0:02:36.6]}
8... Nd7 {[%clk 0:02:56.5]} 9. Bf4 {[%clk 0:02:36.6]} 9... Bb7 {[%clk
0:02:55.8]} 10. d5 {[%clk 0:02:37]} 10... e5 {[%clk 0:02:55.2]} 11. Be3 {[%clk
0:02:36.5]} 11... Ngf6 {[%clk 0:02:47.7]} 12. Ba2 {[%clk 0:02:29.3]} 12... Nh5
{[%clk 0:02:39.6]} 13. g3 {[%clk 0:02:18.3]} 13... O-O {[%clk 0:02:33.8]} 14.
Qd2 {[%clk 0:02:16.7]} 14... Kh7 {[%clk 0:02:32.5]} 15. g4 {[%clk 0:02:14.2]}
15... Nf4 {[%clk 0:02:30.6]} 16. Bxf4 {[%clk 0:02:13.9]} 16... exf4 {[%clk
0:02:30.6]} 17. Qxf4 {[%clk 0:02:14.8]} 17... Ne5 {[%clk 0:02:24.8]} 18. h5
{[%clk 0:02:06.8]} 18... Bc8 {[%clk 0:02:16.6]} 19. g5 {[%clk 0:01:48.8]} 19...
Nxf3+ {[%clk 0:02:12.3]} 20. Qxf3 {[%clk 0:01:40.1]} 20... Qxg5 {[%clk
0:02:12.9]} 21. Qe3 {[%clk 0:01:31.7]} 21... Qxe3+ {[%clk 0:02:08.1]} 22. fxe3
{[%clk 0:01:32.4]} 22... Bg4 {[%clk 0:02:08.2]} 23. hxg6+ {[%clk 0:01:29.8]}
23... fxg6 {[%clk 0:02:09.1]} 24. Rg1 {[%clk 0:01:23.8]} 24... h5 {[%clk
0:01:56.4]} 25. Rg2 {[%clk 0:01:16.6]} 25... Bxc3+ {[%clk 0:01:45.3]} 26. bxc3
{[%clk 0:01:15]} 26... Bf3 {[%clk 0:01:44.8]} 27. Rf2 {[%clk 0:00:53.4]} 27...
Bxe4 {[%clk 0:01:44.9]} 28. Rd1 {[%clk 0:00:51.4]} 28... Rxf2 {[%clk 0:01:40.7]}
29. Kxf2 {[%clk 0:00:52.3]} 29... Rf8+ {[%clk 0:01:41.2]} 30. Kg1 {[%clk
0:00:48.7]} 30... Bxc2 {[%clk 0:01:31.1]} 31. Rd4 {[%clk 0:00:48.8]} 31... a5
{[%clk 0:01:24.4]} 32. Rc4 {[%clk 0:00:42.1]} 32... Rf7 {[%clk 0:01:22.3]} 33.
e4 {[%clk 0:00:40.3]} 33... Re7 {[%clk 0:01:20.2]} 34. e5 {[%clk 0:00:38.1]}
34... dxe5 {[%clk 0:01:15.5]} 35. Rc6 {[%clk 0:00:39]} 35... Bxa4 {[%clk
0:01:13]} 36. Rf6 {[%clk 0:00:38]} 36... Kg7 {[%clk 0:01:11.5]} 37. Rf2 {[%clk
0:00:35.9]} 37... e4 {[%clk 0:01:07.5]} 38. c4 {[%clk 0:00:28.5]} 38... e3
{[%clk 0:01:07.3]} 39. Re2 {[%clk 0:00:28.8]} 39... Bd1 {[%clk 0:01:05.9]} 40.
Re1 {[%clk 0:00:28.9]} 40... Bg4 {[%clk 0:01:04.4]} 41. Bb3 {[%clk 0:00:28.4]}
41... e2 {[%clk 0:01:03]} 42. Kf2 {[%clk 0:00:28.4]} 42... Rf7+ {[%clk 0:01:03]}
43. Ke3 {[%clk 0:00:28.8]} 43... Rf1 {[%clk 0:01:03]} 44. Kd2 {[%clk 0:00:29.3]}
44... Rxe1 {[%clk 0:01:03.4]} 45. Kxe1 {[%clk 0:00:29.6]} 45... Kf6 {[%clk
0:01:03.8]} 0-1

[Event "*** Titled Tuesday Blitz"]
[Site "Chess.com"]
[Date "2021.03.16"]
[Round "9"]
[White "nrvisakh"]
[Black "atwalcb"]
[Result "0-1"]
[WhiteElo "2769"]
[BlackElo "2563"]
[TimeControl "180+1"]
[EndTime "11:43:49 PDT"]
[Termination "atwalcb won by resignation"]

1. e4 {[%clk 0:03:00.9]} 1... d6 {[%clk 0:02:50.1]} 2. d4 {[%clk 0:02:57.5]}
2... Nf6 {[%clk 0:02:50.3]} 3. Nc3 {[%clk 0:02:55.8]} 3... Nbd7 {[%clk
0:02:50.4]} 4. g3 {[%clk 0:02:56.1]} 4... e5 {[%clk 0:02:46.4]} 5. Nge2 {[%clk
0:02:54.9]} 5... Be7 {[%clk 0:02:45.2]} 6. Bg2 {[%clk 0:02:53.3]} 6... O-O
{[%clk 0:02:45.6]} 7. O-O {[%clk 0:02:49.9]} 7... c6 {[%clk 0:02:46]} 8. h3
{[%clk 0:02:49]} 8... b5 {[%clk 0:02:41.4]} 9. a3 {[%clk 0:02:47]} 9... Qc7
{[%clk 0:02:40.9]} 10. f4 {[%clk 0:02:45.2]} 10... a5 {[%clk 0:02:38.2]} 11. g4
{[%clk 0:02:44.1]} 11... Nb6 {[%clk 0:02:27.7]} 12. fxe5 {[%clk 0:02:34.1]}
12... dxe5 {[%clk 0:02:28]} 13. dxe5 {[%clk 0:02:30.8]} 13... Qxe5 {[%clk
0:02:21]} 14. Bf4 {[%clk 0:02:30.6]} 14... Bc5+ {[%clk 0:02:11]} 15. Kh1 {[%clk
0:02:24.7]} 15... Qe6 {[%clk 0:02:10.9]} 16. Bg3 {[%clk 0:02:14.1]} 16... Nc4
{[%clk 0:02:04.5]} 17. Nf4 {[%clk 0:02:08.4]} 17... Qe8 {[%clk 0:02:01.2]} 18.
e5 {[%clk 0:02:04.2]} 18... Ne3 {[%clk 0:01:53.7]} 19. Qf3 {[%clk 0:01:47.3]}
19... Nxf1 {[%clk 0:01:52.9]} 20. Rxf1 {[%clk 0:01:46.6]} 20... Nd7 {[%clk
0:01:22.4]} 21. Qxc6 {[%clk 0:01:46]} 21... Rb8 {[%clk 0:01:21.9]} 22. e6 {[%clk
0:01:28.8]} 22... fxe6 {[%clk 0:01:18.1]} 23. Rd1 {[%clk 0:01:19.2]} 23... e5
{[%clk 0:01:07]} 24. Ne6 {[%clk 0:01:05.8]} 24... Bb7 {[%clk 0:00:32]} 25. Qxd7
{[%clk 0:00:40.4]} 25... Rf1+ {[%clk 0:00:24.4]} 26. Kh2 {[%clk 0:00:39.9]}
26... Bg1+ {[%clk 0:00:24]} 27. Kh1 {[%clk 0:00:40.1]} 27... Bd4+ {[%clk
0:00:23.1]} 28. Rxf1 {[%clk 0:00:39.2]} 28... Qxd7 {[%clk 0:00:22.8]} 29. Nxd4
{[%clk 0:00:39.2]} 29... Bxg2+ {[%clk 0:00:20.6]} 30. Kxg2 {[%clk 0:00:39.1]}
30... Qxd4 {[%clk 0:00:20]} 31. Rd1 {[%clk 0:00:39.1]} 31... Qc5 {[%clk
0:00:14.7]} 32. Rd5 {[%clk 0:00:38.8]} 32... Qc6 {[%clk 0:00:15]} 33. Bxe5
{[%clk 0:00:37.9]} 33... Rd8 {[%clk 0:00:14]} 0-1

[Event "*** Titled Tuesday Blitz"]
[Site "Chess.com"]
[Date "2021.03.16"]
[Round "9"]
[White "SilviusTiberius"]
[Black "kreonx"]
[Result "1-0"]
[WhiteElo "2530"]
[BlackElo "2334"]
[TimeControl "180+1"]
[EndTime "11:43:49 PDT"]
[Termination "SilviusTiberius won by resignation"]

1. e4 {[%clk 0:03:00.9]} 1... c6 {[%clk 0:02:54]} 2. d4 {[%clk 0:03:00.7]} 2...
d5 {[%clk 0:02:54.9]} 3. exd5 {[%clk 0:03:01.6]} 3... cxd5 {[%clk 0:02:55.3]} 4.
Bd3 {[%clk 0:03:02.2]} 4... Nf6 {[%clk 0:02:56]} 5. c3 {[%clk 0:03:02.5]} 5...
g6 {[%clk 0:02:56.9]} 6. Nf3 {[%clk 0:02:59]} 6... Bg7 {[%clk 0:02:57.8]} 7. O-O
{[%clk 0:02:57.9]} 7... O-O {[%clk 0:02:58.7]} 8. h3 {[%clk 0:02:56.5]} 8... Nc6
{[%clk 0:02:59.6]} 9. Re1 {[%clk 0:02:54.4]} 9... Bf5 {[%clk 0:03:00.5]} 10.
Bxf5 {[%clk 0:02:43.5]} 10... gxf5 {[%clk 0:03:01.4]} 11. Ne5 {[%clk 0:02:43.2]}
11... e6 {[%clk 0:03:00.3]} 12. Nd2 {[%clk 0:02:38.2]} 12... Nxe5 {[%clk
0:02:59.6]} 13. dxe5 {[%clk 0:02:37.7]} 13... Ne4 {[%clk 0:02:58.3]} 14. Nb3
{[%clk 0:02:34.3]} 14... Qe7 {[%clk 0:02:54.1]} 15. Be3 {[%clk 0:02:26]} 15...
b6 {[%clk 0:02:49]} 16. Bd4 {[%clk 0:01:57.6]} 16... Qc7 {[%clk 0:02:41.2]} 17.
Qh5 {[%clk 0:01:51.6]} 17... Bxe5 {[%clk 0:02:33.7]} 18. Bxe5 {[%clk 0:01:48.7]}
18... Qxe5 {[%clk 0:02:34.6]} 19. f3 {[%clk 0:01:48.5]} 19... Ng3 {[%clk
0:02:34.4]} 20. Qh4 {[%clk 0:01:29.6]} 20... Qg7 {[%clk 0:02:16.9]} 21. Kf2
{[%clk 0:01:25.9]} 21... f4 {[%clk 0:02:13.4]} 22. Qxf4 {[%clk 0:01:25.4]} 22...
Nf5 {[%clk 0:02:11.9]} 23. g4 {[%clk 0:01:20.4]} 23... Ne7 {[%clk 0:02:09.8]}
24. Nd4 {[%clk 0:01:15.2]} 24... Ng6 {[%clk 0:02:04.3]} 25. Qg5 {[%clk
0:01:10.6]} 25... h6 {[%clk 0:01:58.4]} 26. Qe3 {[%clk 0:01:06]} 26... Qf6
{[%clk 0:01:55.6]} 27. Qxh6 {[%clk 0:00:59.6]} 27... Rac8 {[%clk 0:01:37.3]} 28.
Kg3 {[%clk 0:00:55.5]} 28... Rc4 {[%clk 0:01:21.8]} 29. Rad1 {[%clk 0:00:54.1]}
29... Rfc8 {[%clk 0:01:20.3]} 30. h4 {[%clk 0:00:47.1]} 30... Qg7 {[%clk
0:01:16.4]} 31. Qxg7+ {[%clk 0:00:40.7]} 31... Kxg7 {[%clk 0:01:17.3]} 32. f4
{[%clk 0:00:40.5]} 32... Ne7 {[%clk 0:01:12.5]} 33. f5 {[%clk 0:00:40.1]} 33...
Nc6 {[%clk 0:00:53.6]} 34. fxe6 {[%clk 0:00:35.5]} 34... Nxd4 {[%clk 0:00:52.8]}
35. Rxd4 {[%clk 0:00:35.6]} 35... Rxd4 {[%clk 0:00:49.9]} 36. cxd4 {[%clk
0:00:36.5]} 36... Re8 {[%clk 0:00:47.6]} 37. e7 {[%clk 0:00:35.5]} 37... f6
{[%clk 0:00:47.5]} 38. Kf4 {[%clk 0:00:35.6]} 38... Kf7 {[%clk 0:00:47]} 39. Kf5
{[%clk 0:00:35.7]} 39... Rxe7 {[%clk 0:00:41.3]} 40. Rxe7+ {[%clk 0:00:34.4]}
40... Kxe7 {[%clk 0:00:42.2]} 41. h5 {[%clk 0:00:34.1]} 1-0

[Event "*** Titled Tuesday Blitz"]
[Site "Chess.com"]
[Date "2021.03.16"]
[Round "9"]
[White "Julianos82"]
[Black "campomania3"]
[Result "1-0"]
[WhiteElo "2393"]
[BlackElo "2189"]
[TimeControl "180+1"]
[EndTime "11:43:52 PDT"]
[Termination "Julianos82 won by resignation"]

1. d4 {[%clk 0:03:00.9]} 1... d5 {[%clk 0:02:46.3]} 2. Bf4 {[%clk 0:02:58.4]}
2... Nf6 {[%clk 0:02:45.6]} 3. e3 {[%clk 0:02:57.7]} 3... c5 {[%clk 0:02:45.3]}
4. c3 {[%clk 0:02:56]} 4... Qb6 {[%clk 0:02:44.9]} 5. Nd2 {[%clk 0:02:55.6]}
5... Bf5 {[%clk 0:02:38]} 6. Ngf3 {[%clk 0:02:51.6]} 6... e6 {[%clk 0:02:30.7]}
7. b3 {[%clk 0:02:29.1]} 7... Nc6 {[%clk 0:02:29]} 8. Ne5 {[%clk 0:02:26.2]}
8... cxd4 {[%clk 0:02:06.6]} 9. exd4 {[%clk 0:02:23.1]} 9... Rc8 {[%clk
0:02:05.2]} 10. Rc1 {[%clk 0:02:21.4]} 10... Ba3 {[%clk 0:02:02.4]} 11. Ndc4
{[%clk 0:02:01.3]} 11... dxc4 {[%clk 0:01:54.8]} 12. Nxc4 {[%clk 0:02:02.2]}
12... Qa6 {[%clk 0:01:24.6]} 13. Nd6+ {[%clk 0:02:00.6]} 13... Bxd6 {[%clk
0:01:23.9]} 14. Bxa6 {[%clk 0:02:00.4]} 14... Bxf4 {[%clk 0:01:23.6]} 15. Bxb7
{[%clk 0:01:58]} 15... Bxc1 {[%clk 0:01:20.9]} 16. Bxc8 {[%clk 0:01:54]} 16...
Bh6 {[%clk 0:01:15.8]} 17. Bb7 {[%clk 0:01:50.3]} 17... Nd8 {[%clk 0:01:14.1]}
18. Bf3 {[%clk 0:01:49]} 18... O-O {[%clk 0:01:13.1]} 19. O-O {[%clk 0:01:48.6]}
19... Nd5 {[%clk 0:00:50.5]} 20. c4 {[%clk 0:01:36.2]} 20... Nb4 {[%clk
0:00:36.8]} 21. a3 {[%clk 0:01:25]} 21... Nc2 {[%clk 0:00:29.4]} 22. h4 {[%clk
0:01:18.1]} 22... Nxa3 {[%clk 0:00:20.1]} 23. g4 {[%clk 0:01:13.9]} 23... Bc2
{[%clk 0:00:19.6]} 24. Qa1 {[%clk 0:01:13.1]} 24... Bxb3 {[%clk 0:00:19.7]} 25.
g5 {[%clk 0:01:06.4]} 25... Nxc4 {[%clk 0:00:15.2]} 26. gxh6 {[%clk 0:01:04.4]}
26... Nd2 {[%clk 0:00:12.9]} 27. Qc3 {[%clk 0:01:02.8]} 27... Nxf3+ {[%clk
0:00:07.8]} 28. Qxf3 {[%clk 0:01:03.7]} 28... Bd5 {[%clk 0:00:07.4]} 29. Qg3
{[%clk 0:01:00.2]} 29... g6 {[%clk 0:00:06.9]} 30. Rc1 {[%clk 0:00:57.9]} 30...
Nc6 {[%clk 0:00:04.7]} 31. Rxc6 {[%clk 0:00:48.6]} 31... Bxc6 {[%clk 0:00:03.6]}
32. Qe5 {[%clk 0:00:49.1]} 32... f6 {[%clk 0:00:03.5]} 33. Qxe6+ {[%clk
0:00:48.7]} 33... Kh8 {[%clk 0:00:03.7]} 34. Qxc6 {[%clk 0:00:48.5]} 1-0

[Event "*** Titled Tuesday Blitz"]
[Site "Chess.com"]
[Date "2021.03.16"]
[Round "9"]
[White "northridgehawk"]
[Black "TheCairnTerrier"]
[Result "1-0"]
[WhiteElo "2349"]
[BlackElo "2152"]
[TimeControl "180+1"]
[EndTime "11:43:57 PDT"]
[Termination "northridgehawk won on time"]

1. e4 {[%clk 0:03:00.9]} 1... c5 {[%clk 0:02:59.6]} 2. Nf3 {[%clk 0:02:53.3]}
2... e6 {[%clk 0:02:59.1]} 3. g3 {[%clk 0:02:52.1]} 3... d6 {[%clk 0:02:57.2]}
4. Bg2 {[%clk 0:02:52.3]} 4... Nf6 {[%clk 0:02:57.2]} 5. O-O {[%clk 0:02:52.6]}
5... Be7 {[%clk 0:02:57.8]} 6. d3 {[%clk 0:02:51.4]} 6... O-O {[%clk 0:02:57.1]}
7. Nbd2 {[%clk 0:02:50.4]} 7... Nc6 {[%clk 0:02:55.1]} 8. c3 {[%clk 0:02:46.5]}
8... Ne5 {[%clk 0:02:19.2]} 9. Nxe5 {[%clk 0:02:43.9]} 9... dxe5 {[%clk
0:02:20.1]} 10. Nc4 {[%clk 0:02:43.9]} 10... Qc7 {[%clk 0:02:18.8]} 11. a4
{[%clk 0:02:43.6]} 11... b6 {[%clk 0:02:09]} 12. h4 {[%clk 0:02:35.8]} 12... Bb7
{[%clk 0:02:05.8]} 13. h5 {[%clk 0:02:33.6]} 13... h6 {[%clk 0:02:04.2]} 14. Bf3
{[%clk 0:02:14.3]} 14... Rfd8 {[%clk 0:02:02.3]} 15. Qe2 {[%clk 0:02:13.9]}
15... a6 {[%clk 0:01:37]} 16. Nxe5 {[%clk 0:02:11.8]} 16... b5 {[%clk
0:01:15.1]} 17. axb5 {[%clk 0:02:06.9]} 17... axb5 {[%clk 0:01:14.9]} 18. Bf4
{[%clk 0:02:07.1]} 18... Qb6 {[%clk 0:01:07.1]} 19. Qe3 {[%clk 0:01:53]} 19...
b4 {[%clk 0:01:05.6]} 20. Nc4 {[%clk 0:01:51.4]} 20... Qb5 {[%clk 0:01:04.5]}
21. e5 {[%clk 0:01:49.6]} 21... Nd5 {[%clk 0:01:01.1]} 22. Bxd5 {[%clk
0:01:47.4]} 22... Bxd5 {[%clk 0:01:00.7]} 23. Nd6 {[%clk 0:01:44.8]} 23... Bxd6
{[%clk 0:00:58.4]} 24. exd6 {[%clk 0:01:45.7]} 24... Rxa1 {[%clk 0:00:36.3]} 25.
Rxa1 {[%clk 0:01:42.4]} 25... Bb7 {[%clk 0:00:36.6]} 26. f3 {[%clk 0:01:25.9]}
26... bxc3 {[%clk 0:00:33.5]} 27. bxc3 {[%clk 0:01:24.4]} 27... Qb2 {[%clk
0:00:33.1]} 28. Rc1 {[%clk 0:01:17.2]} 28... Ra8 {[%clk 0:00:14.4]} 29. Qf2
{[%clk 0:01:15.9]} 29... Qb6 {[%clk 0:00:08.5]} 30. Be3 {[%clk 0:01:12.4]} 30...
Qc6 {[%clk 0:00:04.5]} 31. Kg2 {[%clk 0:01:12.3]} 31... c4 {[%clk 0:00:03]} 32.
dxc4 {[%clk 0:01:08.1]} 32... Qxc4 {[%clk 0:00:03.2]} 33. Rb1 {[%clk 0:01:05.6]}
33... Ra2 {[%clk 0:00:02.5]} 34. Rb2 {[%clk 0:01:05.5]} 34... Rxb2 {[%clk
0:00:01.6]} 35. Qxb2 {[%clk 0:01:05.8]} 35... Qc6 {[%clk 0:00:02.3]} 36. Qe2
{[%clk 0:01:04.4]} 36... Qxd6 {[%clk 0:00:02.5]} 37. Bf4 {[%clk 0:01:03.2]}
37... Qc6 {[%clk 0:00:02.7]} 38. Be5 {[%clk 0:01:02.6]} 38... f6 {[%clk
0:00:02]} 39. Bd4 {[%clk 0:01:02.3]} 39... Kf7 {[%clk 0:00:02]} 40. Kf2 {[%clk
0:01:00.2]} 40... e5 {[%clk 0:00:01.9]} 41. Be3 {[%clk 0:00:54.9]} 1-0

[Event "*** Titled Tuesday Blitz"]
[Site "Chess.com"]
[Date "2021.03.16"]
[Round "9"]
[White "Msb2"]
[Black "eljanov"]
[Result "1-0"]
[WhiteElo "2930"]
[BlackElo "2878"]
[TimeControl "180+1"]
[EndTime "11:44:06 PDT"]
[Termination "Msb2 won on time"]

1. d4 {[%clk 0:03:00.9]} 1... Nf6 {[%clk 0:02:59.6]} 2. Nf3 {[%clk 0:03:01.3]}
2... e6 {[%clk 0:02:58.1]} 3. e3 {[%clk 0:03:01.7]} 3... c5 {[%clk 0:02:55.7]}
4. Bd3 {[%clk 0:03:01.7]} 4... b6 {[%clk 0:02:53.1]} 5. O-O {[%clk 0:03:00.3]}
5... Bb7 {[%clk 0:02:53.4]} 6. c4 {[%clk 0:03:00.3]} 6... cxd4 {[%clk
0:02:50.7]} 7. exd4 {[%clk 0:03:01.2]} 7... Be7 {[%clk 0:02:38.2]} 8. Nc3 {[%clk
0:03:00.9]} 8... d5 {[%clk 0:02:36.4]} 9. cxd5 {[%clk 0:02:57.4]} 9... Nxd5
{[%clk 0:02:36.8]} 10. Ne5 {[%clk 0:02:57.8]} 10... O-O {[%clk 0:02:36.6]} 11.
Qg4 {[%clk 0:02:57.4]} 11... Nf6 {[%clk 0:02:23.3]} 12. Qh3 {[%clk 0:02:10.6]}
12... Qxd4 {[%clk 0:02:00.8]} 13. Re1 {[%clk 0:02:03.4]} 13... Nbd7 {[%clk
0:01:45.8]} 14. Nxd7 {[%clk 0:01:42.2]} 14... Qxd7 {[%clk 0:01:45.2]} 15. Bg5
{[%clk 0:01:40.9]} 15... h6 {[%clk 0:01:45.4]} 16. Rad1 {[%clk 0:01:18.2]} 16...
Qc7 {[%clk 0:00:46.9]} 17. Bxh6 {[%clk 0:01:06]} 17... gxh6 {[%clk 0:00:44.7]}
18. Qxh6 {[%clk 0:01:00.9]} 18... Rfd8 {[%clk 0:00:37.5]} 19. Re3 {[%clk
0:01:01.1]} 19... Bf8 {[%clk 0:00:12.3]} 20. Qxf6 {[%clk 0:00:58.5]} 20... Bg7
{[%clk 0:00:12.5]} 21. Qh4 {[%clk 0:00:55.4]} 21... Kf8 {[%clk 0:00:10.8]} 22.
Rg3 {[%clk 0:00:46.4]} 22... Qe5 {[%clk 0:00:10.4]} 23. Re3 {[%clk 0:00:40.3]}
23... Qf6 {[%clk 0:00:10.2]} 24. Qb4+ {[%clk 0:00:40.4]} 24... Qe7 {[%clk
0:00:09.5]} 25. Qg4 {[%clk 0:00:39.3]} 25... Rd4 {[%clk 0:00:09.4]} 26. Qe2
{[%clk 0:00:30.6]} 26... Rad8 {[%clk 0:00:08.9]} 27. Re1 {[%clk 0:00:31.2]}
27... Qh4 {[%clk 0:00:04]} 28. Be4 {[%clk 0:00:29.2]} 28... Rd2 {[%clk
0:00:02.9]} 29. Qf3 {[%clk 0:00:27.3]} 29... Bxe4 {[%clk 0:00:02.3]} 30. Nxe4
{[%clk 0:00:28.2]} 30... Rxb2 {[%clk 0:00:01.2]} 31. g3 {[%clk 0:00:28.7]} 1-0